[Event "FIDE WY-U16 Olympiad 2022"]
[Site "Nakhchivan"]
[Date "2022.10.02"]
[Round "1.16"]
[White "Gasimova, Samra"]
[Black "Jiang, Kate Yuhua"]
[Result "0-1"]
[ECO "D11"]
[WhiteElo "1902"]
[BlackElo "1670"]
[Annotator "TA"]
[PlyCount "118"]
[EventDate "2022.10.02"]
[EventType "team-tourn"]
[EventCountry "AZE"]
[SourceTitle "playchess.com"]
[Source "ChessBase"]
[SourceQuality "1"]
[WhiteTeam "Azerbaijan"]
[BlackTeam "Canada"]
[WhiteTeamCountry "AZE"]
[BlackTeamCountry "CAN"]
[TimeControl "40/5400+30:1800+30"]

{[%evp 12,118,23,26,25,21,34,0,0,0,0,0,0,0,0,0,0,0,0,0,0,-6,0,-20,-22,-27,19,-7,-14,0,0,0,20,0,0,0,0,0,0,0,0,-69,-64,-77,-66,-75,-66,-84,-29,-83,-102,-120,-134,-182,-180,-213,-120,-401,-384,-397,-287,-265,-258,-267,-239,-268,-194,-200,-196,-195,-168,-203,-170,-155,-145,-133,-129,-367,-355,-397,-389,-494,-493,-613,-631,-640,-587,-620,-613,-587,-584,-577,-572,-578,-568,-582,-550,-707,-689,-736,-837,-3198,-2545,-5732,-674,-655,-611,-560,-515]} 1. d4 {[%emt 0:00:05]} d5 {[%emt 0:00:06]} 2. c4 {[%emt 0:00:28]} c6 {[%emt 0:00:02]} 3. Nf3 {[%emt 0:00:07]} Nf6 {[%emt 0:00:02]} 4. e3 {[%emt 0:00:22]} e6 {[%emt 0:00:02]} 5. b3 {[%emt 0:00:17]} Nbd7 {[%emt 0:00:34]} 6. Bd3 {[%emt 0:00:05]} Bd6 {[%emt 0:02:11]} 7. Bb2 {[%emt 0:00:45]} O-O {[%emt 0:01:22] 7...b6 is the fancy move. A06: Réti Opening: 1 Nf3 d5.} 8. Nbd2 {[%emt 0:00:17]} Qc7 {[%emt 0:15:07]} 9. c5 {[%emt 0:20:02]} Be7 {[%emt 0:00:03] The position is equal.} 10. Qc2 {[%emt 0:10:13]} b6 {[%emt 0:04:06][%cal Rb6c5]} 11. b4 {[%emt 0:08:39]} a5 {[%emt 0:04:53]} 12. a3 {[%emt 0:08:23]} Ba6 {[%emt 0:02:52]} 13. O-O {[%emt 0:01:52]} Bxd3 {[%emt 0:06:04]} 14. Qxd3 {[%emt 0:00:05] [#]} Ra7 $146 {[%emt 0:03:46]} ({Predecessor:} 14... Rfb8 15. Bc3 Ra7 16. Rfb1 axb4 17. axb4 Rba8 18. Rxa7 Rxa7 19. Qc2 Ra6 20. Qb2 Qa7 {1-0 (90) Shoshin,K (2030)-Agkatsev,A (1550) Moscow 2021}) 15. h3 {[%emt 0:12:24]} Rfa8 {[%emt 0:02:24]} 16. Qb3 {[%emt 0:01:25]} Ne8 {[%emt 0:12:56]} 17. e4 {[%emt 0:06:45]} dxe4 {[%emt 0:03:31]} 18. Nxe4 {[%emt 0:00:10]} b5 {[%emt 0:04:29]} (18... Ndf6 $142 19. bxa5 bxc5 20. Nxc5 Bxc5 21. dxc5 Rxa5) 19. Rae1 {[%emt 0:04:31]} Ndf6 {[%emt 0:02:28]} 20. Nc3 {[%emt 0:09:38]} Qb7 {[%emt 0:02:52]} 21. Ne5 {[%emt 0:03:30]} Nc7 {[%emt 0:01:22]} 22. f4 {[%emt 0:03:52]} axb4 {[%emt 0:11:09]} 23. axb4 {[%emt 0:00:27]} Nfd5 {[%emt 0:02:41]} 24. f5 {[%emt 0:04:24]} Nxc3 {[%emt 0:03:21]} 25. Qxc3 {[%emt 0:00:11][%cal Oe5c6]} Nd5 {[%emt 0:02:05]} 26. Qg3 {[%emt 0:03:15]} ({Don't play} 26. Qf3 exf5 27. Qxf5 Bf6 $17) (26. Qb3 $11) 26... exf5 $1 $15 {[%emt 0:03:29]} 27. Rxf5 {[%emt 0:00:20]} f6 {[%emt 0:01:28]} 28. Nd3 {[%emt 0:00:50]} Qd7 {[%emt 0:01:21]} 29. Rff1 {[%emt 0:00:36]} Ra4 {[%emt 0:02:27]} (29... Bd8 $17) 30. Bc1 {[%emt 0:00:58]} (30. Re2 $11 {keeps the balance.}) 30... Nxb4 $17 {[%emt 0:00:49]} 31. Nf4 {[%emt 0:00:21] [#]} Bf8 $1 {[%emt 0:03:02] White must now prevent ...Nc2.} 32. Nh5 {[%emt 0:00:26] [#]} (32. Qb3+ $17 Qf7 33. Re6) 32... Kh8 $1 $36 {[%emt 0:00:53][%mdl 2048] Strongly threatening ...Nc2. White is under strong pressure.} (32... Qxd4+ 33. Be3 Qc3 34. Nxf6+ Kh8 35. Nd7 $11) 33. Re4 {[%emt 0:00:27]} Na2 {[%emt 0:01:05]} ({Wrong is} 33... Nc2 $2 34. Qd3 Nxd4 35. Kh1 $19) (33... Qd5 $19 34. Rh4 Ra1) 34. Rg4 {[%emt 0:00:46][%mdl 8192]} (34. Bb2 $17 Nb4 35. Nf4) 34... Nxc1 {[%emt 0:00:48]} 35. Rxc1 {[%emt 0:00:15]} Rxd4 {[%emt 0:00:45]} 36. Nxf6 {[%emt 0:00:17]} Rxg4 {[%emt 0:00:33]} ({Weaker is} 36... Rd1+ 37. Kh2 Qd3 38. Rxd1 Qxd1 39. Qh4 $17) 37. Nxg4 {[%emt 0:00:16]} Qd4+ {[%emt 0:00:22]} 38. Qf2 {[%emt 0:00:51]} Qxf2+ {[%emt 0:01:17]} 39. Kxf2 {[%emt 0:00:14][%mdl 4096] Endgame KRB-KRN} Re8 {[%emt 0:00:40] Inhibits Ne5.} 40. Kf3 {[%emt 0:00:26]} Kg8 {[%emt 0:00:26]} 41. Kf4 {[%emt 0:30:43]} Re6 {[%emt 0:30:31]} 42. h4 {[%emt 0:01:01]} Kf7 {[%emt 0:00:35]} 43. Ne5+ {[%emt 0:00:14]} Ke8 {[%emt 0:00:29]} 44. Ra1 $2 {[%emt 0:00:42] White does not recover from this.} (44. g4 $17) 44... Bxc5 {[%emt 0:00:00] And now ...Bd6 would win.} 45. Nd3 {[%emt 0:00:00]} Bd4 {[%emt 0:00:00]} 46. Ra6 {[%emt 0:00:00]} Kd7 {[%emt 0:00:00] Black is clearly winning.} 47. g4 {[%emt 0:00:00]} Kd6 {[%emt 0:00:00]} 48. g5 {[%emt 0:00:00]} Kd5 {[%emt 0:00:00] Threatens to win with ...Re4+.} 49. h5 {[%emt 0:00:00]} g6 {[%emt 0:00:00] ...Re4+ is the strong threat.} 50. Nb4+ {[%emt 0:00:00]} Kc5 {[%emt 0:00:00]} 51. Nc2 {[%emt 0:00:00]} Be5+ {[%emt 0:00:00]} 52. Kg4 {[%emt 0:00:00]} Re7 {[%emt 0:00:00] Prevents Ra7.} 53. hxg6 {[%emt 0:00:00]} hxg6 {[%emt 0:00:00]} 54. Ne1 {[%emt 0:00:00]} Rd7 {[%emt 0:00:00] Against Nd3+} 55. Nf3 {[%emt 0:00:00]} Bc7 {[%emt 0:00:00]} 56. Nh4 {[%emt 0:00:00]} Rd4+ {[%emt 0:00:00]} 57. Kh3 {[%emt 0:00:00]} Rd3+ {[%emt 0:00:00]} (57... Ra4 $142 58. Rxa4 bxa4) 58. Kg2 {[%emt 0:00:00]} Rg3+ {[%emt 0:00:00]} 59. Kf2 {[%emt 0:00:00]} Rxg5 {[%emt 0:00:00] Weighted Error Value: White=0.33/Black=0.13 (very precise)} 0-1

[Event "FIDE WY-U16 Olympiad 2022"]
[Site "Nakhchivan"]
[Date "2022.10.02"]
[Round "1.16"]
[White "Fawaz, Nadia"]
[Black "Diaz Bartolo, Elizabeth Schahrazad"]
[Result "0-1"]
[ECO "A48"]
[WhiteElo "1500"]
[BlackElo "1681"]
[Annotator "NA RC COMBH"]
[PlyCount "104"]
[EventDate "2022.10.02"]
[EventType "team-tourn"]
[EventCountry "AZE"]
[SourceTitle "playchess.com"]
[Source "ChessBase"]
[SourceQuality "1"]
[WhiteTeam "Lebanon"]
[BlackTeam "Mexico"]
[WhiteTeamCountry "LBN"]
[BlackTeamCountry "MEX"]
[TimeControl "40/5400+30:1800+30"]

1. d4 {[%emt 0:00:20]} Nf6 {[%emt 0:00:12]} 2. Bf4 {[%emt 0:00:41]} g6 {[%emt 0:00:10]} 3. Nf3 {[%emt 0:00:30]} Bg7 {[%emt 0:00:12]} 4. e3 {[%emt 0:00:18]} O-O {[%emt 0:00:18]} 5. Bd3 {[%emt 0:00:41]} d6 {[%emt 0:00:16]} 6. O-O {[%emt 0:00:46]} Nbd7 {[%emt 0:02:25]} 7. Nbd2 {[%emt 0:01:23]} Qe8 {[%emt 0:05:31]} 8. Bg3 {[%emt 0:06:49]} e5 {[%emt 0:01:03]} 9. dxe5 {[%emt 0:02:12]} dxe5 {[%emt 0:00:12]} 10. Bb5 {[%emt 0:01:50]} Nh5 {[%emt 0:04:13]} 11. Nc4 {[%emt 0:03:36]} Nxg3 {[%emt 0:01:57]} 12. hxg3 {[%emt 0:00:17]} Qe7 {[%emt 0:07:39]} 13. Bxd7 {[%emt 0:03:01]} Rd8 {[%emt 0:00:45]} 14. Qe2 {[%emt 0:02:54]} Bxd7 {[%emt 0:02:14]} 15. Rfd1 {[%emt 0:08:33]} Bb5 {[%emt 0:05:23]} 16. Nfd2 {[%emt 0:04:46]} e4 {[%emt 0:03:46]} 17. a4 {[%emt 0:12:02]} Ba6 {[%emt 0:01:13]} 18. Rab1 {[%emt 0:05:00]} Qb4 {[%emt 0:02:51]} 19. b3 {[%emt 0:03:07]} f5 {[%emt 0:14:33]} 20. g4 {[%emt 0:02:01]} Bc3 {[%emt 0:04:56]} 21. gxf5 {[%emt 0:01:32]} gxf5 {[%emt 0:05:15]} 22. Nf1 {[%emt 0:12:43]} Qc5 {[%emt 0:06:43]} 23. Qh5 {[%emt 0:03:08]} Rd5 {[%emt 0:04:49]} 24. Rxd5 {[%emt 0:00:39]} Qxd5 {[%emt 0:00:02]} 25. Rd1 {[%emt 0:00:12]} Qe6 {[%emt 0:00:55]} 26. Ng3 {[%emt 0:02:16]} Rf8 {[%emt 0:00:50]} 27. Qg5+ {[%emt 0:00:25]} Qg6 {[%emt 0:02:04]} 28. Qe7 {[%emt 0:01:50]} Rf7 {[%emt 0:07:12]} 29. Rd8+ {[%emt 0:00:29]} Kg7 {[%emt 0:00:11]} 30. Qe8 {[%emt 0:00:20]} Kh6 {[%emt 0:08:49]} 31. Ne5 {[%emt 0:02:07]} Bxe5 {[%emt 0:00:02]} 32. Qxe5 {[%emt 0:00:15]} Qf6 {[%emt 0:01:59]} 33. Qf4+ {[%emt 0:00:45]} Qg5 {[%emt 0:00:50]} 34. Qe5 {[%emt 0:00:14]} Qxd8 {[%emt 0:00:57]} 35. Nxf5+ {[%emt 0:01:51]} Rxf5 {[%emt 0:02:56]} 36. Qxf5 {[%emt 0:00:36]} Qd1+ {[%emt 0:00:05]} 37. Kh2 {[%emt 0:00:19]} Qh5+ {[%emt 0:00:06]} 38. Qxh5+ {[%emt 0:00:42]} Kxh5 {[%emt 0:00:06]} 39. Kg3 {[%emt 0:00:32]} Kg5 {[%emt 0:00:13]} 40. c4 {[%emt 0:00:53]} b6 {[%emt 0:00:22]} 41. f4+ {[%emt 0:30:39]} exf3 {[%emt 0:32:38]} 42. gxf3 {[%emt 0:00:18]} Bc8 {[%emt 0:00:34]} 43. e4 {[%emt 0:00:27]} Be6 {[%emt 0:00:44]} 44. f4+ {[%emt 0:00:25]} Kf6 {[%emt 0:01:08]} 45. Kh4 {[%emt 0:01:48]} c6 {[%emt 0:00:40]} 46. Kh5 {[%emt 0:00:14]} b5 {[%emt 0:00:44]} 47. axb5 {[%emt 0:00:50]} cxb5 {[%emt 0:00:09]} 48. cxb5 {[%emt 0:00:57]} Bxb3 {[%emt 0:00:09]} 49. Kh6 {[%emt 0:00:14]} Bc4 {[%emt 0:00:13]} 50. Kxh7 {[%emt 0:00:20]} Bxb5 {[%emt 0:00:06]} 51. e5+ {[%emt 0:03:09]} Kf5 {[%emt 0:00:15]} 52. Kg7 {[%emt 0:00:22]} Bc4 {[%emt 0:00:22]} 0-1

[Event "FIDE WY-U16 Olympiad 2022"]
[Site "Nakhchivan"]
[Date "2022.10.02"]
[Round "1.17"]
[White "Kilic, Eray"]
[Black "Southcott-Moyers, Indy"]
[Result "1-0"]
[ECO "C95"]
[WhiteElo "2428"]
[BlackElo "1952"]
[Annotator "TA"]
[PlyCount "102"]
[EventDate "2022.10.02"]
[EventType "team-tourn"]
[EventCountry "AZE"]
[SourceTitle "playchess.com"]
[Source "ChessBase"]
[SourceQuality "1"]
[WhiteTeam "Turkey"]
[BlackTeam "England"]
[WhiteTeamCountry "TUR"]
[BlackTeamCountry "ENG"]
[TimeControl "40/5400+30:1800+30"]

{[%evp 28,102,37,0,5,6,5,0,0,0,0,0,0,0,0,0,0,0,0,0,3,0,4,0,-4,-10,-2,-12,10,3,102,102,146,153,140,141,150,145,235,243,243,243,229,235,224,230,274,271,360,262,311,315,354,265,267,265,260,259,252,245,228,199,335,331,323,322,568,424,275,274,622,597,739,781,1563,1425,763]} 1. e4 {[%emt 0:00:04]} e5 {[%emt 0:00:06]} 2. Nf3 {[%emt 0:00:04]} Nc6 {[%emt 0:00:05]} 3. Bb5 {[%emt 0:00:04]} a6 {[%emt 0:00:38]} 4. Ba4 {[%emt 0:00:02]} Nf6 {[%emt 0:00:21]} 5. O-O {[%emt 0:00:06]} Be7 {[%emt 0:00:40]} 6. Re1 {[%emt 0:00:06]} b5 {[%emt 0:00:05]} 7. Bb3 {[%emt 0:00:04]} d6 {[%emt 0:00:52]} 8. c3 {[%emt 0:00:05]} O-O {[%emt 0:00:18]} 9. h3 {[%emt 0:00:03]} Nb8 {[%emt 0:02:05]} 10. d4 {[%emt 0:00:17]} Nbd7 {[%emt 0:00:13]} 11. Nbd2 {[%emt 0:00:42]} Bb7 {[%emt 0:00:08]} 12. Bc2 {[%emt 0:00:15]} Re8 {[%emt 0:00:57]} 13. Nf1 {[%emt 0:00:11]} Bf8 {[%emt 0:00:10]} 14. Ng3 {[%emt 0:00:08]} g6 {[%emt 0:00:21]} 15. Nh2 {[%emt 0:05:42]} d5 {[%emt 0:17:38] C95: Closed Ruy Lopez: Breyer Variation with 10 d4.} 16. dxe5 {[%emt 0:05:04]} Nxe4 {[%emt 0:01:26]} 17. Nxe4 {[%emt 0:07:59]} (17. Bf4 {feels hotter.} Nxe5 18. Nxe4 dxe4 19. Bxe4 Bxe4 20. Rxe4 Nc4 21. Rxe8 Qxd1+ 22. Rxd1 Rxe8 23. Ng4) 17... dxe4 {[%emt 0:00:02] The position is equal.} 18. Bxe4 {[%emt 0:01:00]} Bxe4 {[%emt 0:00:34]} 19. Rxe4 {[%emt 0:00:02] [#] Black must now prevent Rd4.} Nxe5 {[%emt 0:00:43]} (19... Rxe5 20. Rd4 Qe8 21. Bf4 $14) 20. Bf4 {[%emt 0:05:27]} Qxd1+ {[%emt 0:05:46]} 21. Rxd1 {[%emt 0:00:02]} Nc4 {[%emt 0:14:31]} 22. Rxe8 {[%emt 0:00:08]} Rxe8 {[%emt 0:00:01] [#]} 23. Ng4 $146 {[%emt 0:01:16]} ({Predecessor:} 23. b3 Nd6 24. Nf3 Re2 {½-½ (24) Matviishen,V (2423)-Nasuta,G (2491) Suwalki 2018}) 23... Bg7 {[%emt 0:04:51] Prevents Nf6+.} 24. b3 $36 {[%emt 0:01:58][%mdl 2048] White has some pressure.} h5 {[%emt 0:12:30]} 25. bxc4 {[%emt 0:10:41] Strongly threatening Ne3.} hxg4 $11 {[%emt 0:00:02][%mdl 4096] Endgame KRB-KRB} 26. c5 {[%emt 0:01:28]} c6 {[%emt 0:02:05]} 27. Rd6 {[%emt 0:01:56]} (27. hxg4 $5 {[%cal Rd1d6]} Bxc3 28. f3 $11) 27... Rc8 {[%emt 0:00:18]} 28. hxg4 {[%emt 0:01:07]} Bf8 {[%emt 0:00:43] [#]} (28... Bxc3 $11 29. Kf1 Re8) 29. Bg5 $1 $16 {[%emt 0:00:42] White now steadily converts the win.} Rc7 {[%emt 0:11:39]} (29... Bxd6 $2 30. cxd6 Kg7 31. d7 $18) 30. Rd8 {[%emt 0:01:16]} Kg7 {[%emt 0:00:18] Prevents Bh6+.} 31. Bf4 {[%emt 0:06:09]} Re7 {[%emt 0:02:44]} 32. Be3 {[%emt 0:00:08] And now g5 would win. White is more active.} Re6 {[%emt 0:03:55]} (32... f6 $16 33. Rc8 Re6 34. Rc7+ Be7) 33. Bd4+ $18 {[%emt 0:02:07]} f6 {[%emt 0:02:33]} 34. Ra8 {[%emt 0:06:10]} Kf7 {[%emt 0:01:21]} 35. Rxa6 {[%emt 0:00:47]} Be7 {[%emt 0:00:57]} 36. g3 {[%emt 0:01:45]} Ke8 {[%emt 0:01:58]} 37. Kg2 {[%emt 0:00:57]} Bd8 {[%emt 0:01:07]} 38. Ra7 {[%emt 0:01:28]} Re7 {[%emt 0:01:01]} 39. Ra8 {[%emt 0:03:53]} Re6 {[%emt 0:00:16]} 40. Be3 {[%emt 0:00:56]} Kd7 {[%emt 0:02:42]} 41. Ra7+ {[%emt 0:30:22]} Ke8 {[%emt 0:30:30]} 42. Kf3 {[%emt 0:05:06] Against Re4} Be7 {[%emt 0:02:43]} 43. Ra8+ {[%emt 0:05:20]} Kd7 {[%emt 0:04:17]} 44. c4 {[%emt 0:02:48]} b4 {[%emt 0:03:02]} (44... bxc4 {keeps fighting.} 45. Ra4 c3) 45. Rb8 {[%emt 0:01:22]} Re5 {[%emt 0:01:32]} 46. Bd4 {[%emt 0:01:29]} ({Don't play} 46. Rxb4 Bxc5 47. Rb7+ Ke8 $18) 46... Rg5 {[%emt 0:02:07]} (46... Re1 {was called for.} 47. Rxb4 Kc8) 47. Rxb4 {[%emt 0:00:38] aiming for Rb7+.} f5 {[%emt 0:00:00]} 48. Rb7+ {[%emt 0:00:00]} Kd8 $2 {[%emt 0:00:00]} (48... Ke8 49. Ke3 fxg4) 49. gxf5 {[%emt 0:00:00] White is clearly winning.} ({Not} 49. Rb8+ Kc7 50. Rg8 (50. Be5+ Kd7 $16) 50... Bxc5 $18) 49... Rxf5+ {[%emt 0:00:00]} 50. Ke4 {[%emt 0:00:00]} Bxc5 {[%emt 0:00:00]} 51. g4 {[%emt 0:00:00]} Rg5 {[%emt 0:00:00] Weighted Error Value: White=0.12 (very precise) /Black=0.42} 1-0

[Event "FIDE WY-U16 Olympiad 2022"]
[Site "Nakhchivan"]
[Date "2022.10.02"]
[Round "1.17"]
[White "Cheng, Justin Hong-Chen"]
[Black "Orozbaev, Eldiar"]
[Result "1/2-1/2"]
[ECO "E06"]
[WhiteElo "1843"]
[BlackElo "2369"]
[Annotator "TA"]
[PlyCount "139"]
[EventDate "2022.10.02"]
[EventType "team-tourn"]
[EventCountry "AZE"]
[SourceTitle "playchess.com"]
[Source "ChessBase"]
[SourceQuality "1"]
[WhiteTeam "Hong Kong"]
[BlackTeam "Kyrgyzstan"]
[WhiteTeamCountry "HKG"]
[BlackTeamCountry "KGZ"]
[TimeControl "40/5400+30:1800+30"]

{[%evp 17,139,0,0,0,3,0,12,-20,-8,-5,-5,0,-9,-37,52,37,36,36,70,69,79,39,43,3,3,0,19,6,10,5,2,0,0,-3,0,-19,-19,-15,-13,-20,-15,-36,-33,-58,-45,-52,-50,-59,-54,-56,-57,-52,-47,-100,-37,-48,-44,-54,-37,-57,-33,-177,-156,-196,-191,-189,-131,-133,-112,-47,-48,-46,-16,-52,0,0,0,-57,-6,-6,0,-231,-239,-235,-225,-230,-138,-145,-127,-240,-229,-194,-136,-139,-89,-89,-54,-123,-104,-178,-178,-266,-90,-128,-74,-91,-50,-51,-50,-42,-49,-49,-49,-49,-50,-51,0,0,0,0,0,0,8,8]} 1. d4 {[%emt 0:00:04]} Nf6 {[%emt 0:00:47]} 2. Nf3 {[%emt 0:00:32]} e6 {[%emt 0:00:04]} 3. c4 {[%emt 0:00:29]} d5 {[%emt 0:00:53]} 4. g3 {[%emt 0:00:33]} Be7 {[%emt 0:00:04]} 5. Bg2 {[%emt 0:00:08]} O-O {[%emt 0:00:05]} 6. O-O {[%emt 0:00:04]} c6 {[%emt 0:00:02]} 7. Qc2 {[%emt 0:01:03]} b6 {[%emt 0:00:13]} 8. Nbd2 {[%emt 0:00:18]} Bb7 {[%emt 0:00:05]} 9. e4 {[%emt 0:01:11]} Na6 {[%emt 0:00:15]} 10. Rd1 {[%emt 0:08:51] E06: Closed Catalan: Early deviations.} Rc8 {[%emt 0:02:16]} 11. b3 {[%emt 0:08:16]} Rc7 {[%emt 0:05:18]} 12. Ne5 {[%emt 0:04:31]} Qa8 {[%emt 0:07:23]} 13. Bb2 {[%emt 0:05:03] [#]} Rd8 $146 {[%emt 0:23:25]} ({Predecessor:} 13... c5 14. exd5 exd5 15. Qf5 Qc8 16. Qxc8 Rfxc8 17. cxd5 Bxd5 18. Ndc4 cxd4 19. Rxd4 Bxg2 20. Kxg2 {½-½ (40) Kustar,S (2335)-Kovalyov,A (2557) Calgary 2009}) 14. Rac1 {[%emt 0:05:31]} c5 {[%emt 0:07:27][%cal Rd5e4]} 15. dxc5 {[%emt 0:08:03]} Bxc5 {[%emt 0:08:10]} (15... Nb4 $15 16. Qb1 dxe4) 16. exd5 $14 {[%emt 0:03:45]} exd5 {[%emt 0:03:07]} 17. Qf5 {[%emt 0:04:51]} Qc8 {[%emt 0:11:56]} 18. Qxc8 {[%emt 0:07:38] White is more active.} Rcxc8 {[%emt 0:01:46]} 19. cxd5 {[%emt 0:04:57]} Bxd5 {[%emt 0:00:05]} 20. Bxd5 {[%emt 0:04:52]} Rxd5 {[%emt 0:00:19]} 21. Ndc4 {[%emt 0:01:51][%cal Oc4d6]} Nc7 {[%emt 0:05:43]} 22. Rxd5 {[%emt 0:02:31]} Nfxd5 {[%emt 0:00:23]} 23. Rd1 {[%emt 0:04:23]} Re8 {[%emt 0:00:36]} 24. Nd3 {[%emt 0:03:23]} Bf8 {[%emt 0:00:56]} 25. Re1 {[%emt 0:01:00]} Ne6 {[%emt 0:00:05]} 26. Ba3 {[%emt 0:03:20]} Bxa3 {[%emt 0:01:18]} 27. Nxa3 {[%emt 0:00:03]} Nc3 {[%emt 0:00:12]} 28. Nc4 {[%emt 0:01:22]} b5 {[%emt 0:00:51]} 29. Ne3 {[%emt 0:03:57]} Rd8 {[%emt 0:02:24]} 30. Ne5 {[%emt 0:01:22]} Nd4 {[%emt 0:00:45] aiming for ...f6.} 31. Kg2 {[%emt 0:00:54]} f6 {[%emt 0:00:11]} ({Don't play} 31... Nxa2 32. Ra1 f6 33. Nf3 Nxf3 34. Rxa2 $11) 32. Nf3 {[%emt 0:00:37]} Nxf3 {[%emt 0:00:30]} ({But not} 32... Nxa2 33. Ra1 Nxf3 34. Rxa2 $11) 33. Kxf3 {[%emt 0:00:05][%cal Oa2a4]} Nxa2 $15 {[%emt 0:00:13][%mdl 4096] Endgame KRN-KRN} 34. Nf5 {[%emt 0:04:24]} Rd7 {[%emt 0:01:16]} 35. Ra1 {[%emt 0:04:45]} (35. Re6 $15) 35... Nc3 {[%emt 0:01:29]} (35... Nb4 $17 36. Rc1 Kf7) 36. Ra5 {[%emt 0:00:53]} g6 {[%emt 0:00:15]} 37. Ne3 {[%emt 0:00:15]} Kf7 {[%emt 0:05:26]} 38. Ra6 {[%emt 0:01:05]} Nb1 {[%emt 0:03:19] White must now prevent ...Nd2+.} 39. Ng4 {[%emt 0:01:29]} (39. Kg2 $15) 39... Nd2+ $19 {[%emt 0:00:04]} 40. Kg2 {[%emt 0:01:21]} Nxb3 {[%emt 0:00:53]} 41. Nxf6 {[%emt 0:30:16]} Rc7 {[%emt 0:31:19]} (41... Nc5 $19 42. Rc6 Rb7) 42. Nxh7 $17 {[%emt 0:00:13] [#]} Nc5 $1 {[%emt 0:00:09]} 43. Ng5+ {[%emt 0:00:19]} Kg7 {[%emt 0:00:09]} 44. Ra5 {[%emt 0:00:56]} Rb7 {[%emt 0:00:39]} 45. Nf3 {[%emt 0:00:19]} Ne6 {[%emt 0:02:10]} ({Black should play} 45... a6 $15) 46. Ra6 $11 {[%emt 0:00:53]} Nc7 {[%emt 0:00:12]} 47. Rc6 {[%emt 0:00:38]} ({Better is} 47. Rd6 $11) 47... b4 {[%emt 0:00:30]} (47... a5 $1 $15 48. Ne5 a4 49. Rxg6+ Kh7) 48. Nd4 {[%emt 0:00:37][%cal Oc6c7]} Kf7 {[%emt 0:03:31]} 49. Kf3 $2 {[%emt 0:00:27]} (49. Nb3 $11 {and White has nothing to worry.}) 49... b3 $19 {[%emt 0:00:14]} 50. Nxb3 {[%emt 0:00:39]} Rxb3+ {[%emt 0:00:04] KRN-KR} 51. Kg4 {[%emt 0:00:08]} Nd5 {[%emt 0:00:11]} 52. Ra6 {[%emt 0:00:25]} Nf6+ {[%emt 0:00:16]} 53. Kg5 {[%emt 0:00:39]} (53. Kh4 $17) 53... Rb5+ {[%emt 0:00:06]} 54. Kf4 {[%emt 0:00:17]} Rb7 {[%emt 0:00:10]} (54... Rf5+ $19 55. Ke3 Ng4+ 56. Kd4 Nxf2 57. Rxa7+ Kf6 58. Ra6+ Kg5 59. h4+ Kh6) 55. h4 {[%emt 0:00:39]} Nd7 {[%emt 0:03:06]} (55... Kg7 $142 56. Ra5 Rc7) 56. Kg5 $17 {[%emt 0:00:23]} Nf8 {[%emt 0:00:08]} 57. f4 {[%emt 0:00:41]} ({White should try} 57. Kh6 $15) 57... Nh7+ {[%emt 0:00:14]} 58. Kg4 {[%emt 0:00:30]} (58. Kh6 $17 Nf6 59. Ra5) 58... Nf6+ $19 {[%emt 0:00:07]} 59. Kf3 {[%emt 0:00:15]} (59. Kh3 {was forced.}) 59... Nd7 $2 {[%emt 0:00:43]} (59... Rb3+ $19 {has better winning chances.} 60. Kg2 Ne4 61. Rxa7+ Kf6 62. Ra6+ Kg7) 60. g4 {[%emt 0:00:38] [#]} Nc5 {[%emt 0:00:05]} (60... Nb8 $142 $1 61. Ra5 Nc6) 61. Ra5 $17 {[%emt 0:00:15]} Ne6 {[%emt 0:00:42]} 62. f5 {[%emt 0:00:51]} gxf5 {[%emt 0:00:43]} 63. Rxf5+ {[%emt 0:00:13]} Ke7 {[%emt 0:00:30] ( -> ...Nd4+)} 64. Ra5 {[%emt 0:00:09]} Nd4+ {[%emt 0:02:46]} 65. Kf4 {[%emt 0:00:26]} Nc6 {[%emt 0:00:09]} 66. Ra6 {[%emt 0:00:18]} Kd6 {[%emt 0:00:29]} (66... Rb6 $15 67. Rxb6 axb6) 67. h5 $11 {[%emt 0:00:39] The position is equal.} Rc7 {[%emt 0:00:00]} 68. h6 {[%emt 0:00:00] Hoping for Kf5.} Ke6 {[%emt 0:00:00]} 69. h7 {[%emt 0:00:00]} Rxh7 {[%emt 0:00:00] And now ...Kd5 would win.} 70. Rxc6+ {[%emt 0:00:00] White happily takes the draw.  Weighted Error Value: White=0.30/Black=0.22 (precise)} 1/2-1/2